Cogmind - Beta 13 @@@ ROGUE MODE // 2024.05.14 @ 15:52:50 Player: Brognold Result: Destroyed by H-61 Shepherd with Heavy Assault Cannon Performance ------------- Evolutions (3) 1500 Regions Visited (6) 1200 Robots Destroyed (31) 155 Value Destroyed (1261) 1261 Prototype IDs (2) 40 Alien Tech Used (0) 0 Bonus (500) 500 TOTAL SCORE: 4656 Bonus ------- Entered DSFs 500 Cogmind --------- Core Integrity 0/700 Matter 140/300 Energy 77/100 System Corruption 0% Temperature Cool (0) Movement Core (450) Ox8 Location -7/DSF Parts ------- > --- POWER (2) -------- (None) > --- PROPULSION (4) --- (None) > --- UTILITY (4) ------ Large Storage Unit Improved Signal Interpreter Targeting Computer Core Analyzer > --- WEAPON (3) ------- Heavy Particle Cannon > --- INVENTORY (15) --- Carbon-fiber Leg Carbon-fiber Leg Heat Sink Medium Matter Pod (100) Improved Sensor Array Seismic Detector Kinecellerator Advanced ECM Suite Medium Armor Plating Mining Laser Peak State ------------ > --- POWER ------------ Ion Engine Light Nuclear Core > --- PROPULSION ------- Improved Carbon-fiber Leg Improved Carbon-fiber Leg Improved Titanium Leg Improved Titanium Leg > --- UTILITY ---------- Large Storage Unit Improved Signal Interpreter Targeting Computer Core Analyzer > --- WEAPON ----------- Heavy Assault Rifle Assault Cannon Assault Cannon > --- INVENTORY -------- Ion Engine Improved Ion Engine Light Treads Aluminum Leg Heat Sink Medium Matter Pod Improved Sensor Array Seismic Detector Kinecellerator Advanced ECM Suite Medium Armor Plating Heavy Particle Cannon EMP Blaster Missile Launcher Mining Laser [Rating: 40] Favorites ----------- Power Ion Engine Engine Ion Engine Power Core Light Nuclear Core Propulsion Light Treads Treads Light Treads Leg Aluminum Leg Utility Large Storage Unit Device Kinecellerator Storage Large Storage Unit Processor Improved Signal Interpreter Hackware System Shield Protection Medium Armor Plating Weapon Light Assault Rifle Energy Gun Small Laser Energy Cannon Particle Cannon Ballistic Gun Light Assault Rifle Ballistic Cannon Assault Cannon Launcher Missile Launcher Build | -11 -10 -9 -9 -8 -7 -7 ------- Run | Yrd Mat Mat Min Mat Fac DSF Slots Evolved 6 | . . 2 . 2 2 . Power 1 | . . . . 1 . . Propulsion 2 | . . 1 . . 1 . Utility 2 | . . 1 . . 1 . Weapon 1 | . . . . 1 . . Parts Attached 60 | 6 5 11 2 25 . 11 Power 8 | 1 . 1 . 4 . 2 Engine 7 | 1 . 1 . 3 . 2 Core 1 | . . . . 1 . . Reactor . | . . . . . . . Propulsion 15 | 2 . 2 . 7 . 4 Treads 8 | 2 . 2 . 4 . . Leg 7 | . . . . 3 . 4 Wheel . | . . . . . . . Hover . | . . . . . . . Flight . | . . . . . . . Utility 17 | 1 4 4 2 4 . 2 Device 7 | . 2 1 2 2 . . Storage 3 | 1 2 . . . . . Processor 3 | . . . . 1 . 2 Hackware 1 | . . . . 1 . . Protection 3 | . . 3 . . . . Artifact . | . . . . . . . Weapon 20 | 2 1 4 . 10 . 3 Energy Gun 1 | 1 . . . . . . Energy Cannon 2 | . . 1 . . . 1 Ballistic Gun 9 | 1 1 2 . 5 . . Ballistic Cannon 5 | . . 1 . 4 . . Launcher 3 | . . . . 1 . 2 Special Weapon . | . . . . . . . Impact Weapon . | . . . . . . . Slashing Weapon . | . . . . . . . Piercing Weapon . | . . . . . . . Special Melee Weapon . | . . . . . . . Unidentified Prototypes . | . . . . . . . Parts Lost 18 | . . . . 7 . 11 Power 5 | . . . . 1 . 4 Propulsion 6 | . . . . 3 . 3 Utility 1 | . . . . . . 1 Weapon 6 | . . . . 3 . 3 Highest Loss Streak 10 | . . . . 2 . 10 To Critical Strikes . | . . . . . . . Average Slot Usage (%) 95 | . 97 97 100 95 84 77 Engine 13 | . 14 11 11 16 7 5 Treads 24 | . 28 31 33 22 7 1 Leg 2 | . . . . 2 15 21 Device 9 | . 11 13 11 9 7 . Storage 10 | . 14 11 11 9 7 7 Processor 3 | . . . . 3 7 20 Protection 4 | . . 8 11 3 . . Ballistic Gun 17 | . 26 15 22 14 7 3 Ballistic Cannon 4 | . . 3 . 7 15 9 Launcher 1 | . . . . 2 . . Naked Turns . | . . . . . . . Heaviest Build 55 | 12 32 41 41 55 44 43 Greatest Support 76 | 40 40 60 60 60 20 76 Greatest Overweight (x) 8 | . . . . 2 2 8 Average Overweight (x) . | . . . . . 2 . Largest Inventory Capacity 15 | 8 15 15 15 15 15 15 Average Capacity 14 | 7 14 15 15 15 15 15 Most Carried 15 | 3 6 15 15 15 13 15 Average Carried 11 | 1 5 12 13 13 13 13 Final Capacity 15 | 8 15 15 15 15 15 15 Final Carried 14 | 3 6 14 13 13 13 10 Class Distribution -------------------- 44% | Mutant 20% | Scavenger-Mutant 14% | Scavenger-Skirmisher 11% | Scavenger-Gunner 5% | Gunner 3% | Skirmisher Dominant Class ---------------- Mutant | -10/Materials Scavenger-Mutant | -9/Materials Scavenger-Mutant | -9/Mines Scavenger-Skirmisher | -8/Materials Scavenger-Skirmisher | -7/Factory Mutant | -7/DSF Resources | -11 -10 -9 -9 -8 -7 -7 ----------- Run | Yrd Mat Mat Min Mat Fac DSF Matter Collected 1367 | 173 109 276 39 586 . 184 Remotely . | . . . . . . . Salvage Created 1078 | . 109 335 . 447 . 187 Parts 68 | . 11 22 . 23 . 12 Haulers Intercepted . | . . . . . . . Recyclers Shooed 3 | . . 3 . . . . Parts Field Recycled . | . . . . . . . Retrieved Matter . | . . . . . . . Parts Self-Destructed . | . . . . . . . Prevented . | . . . . . . . Kills | -11 -10 -9 -9 -8 -7 -7 ------- Run | Yrd Mat Mat Min Mat Fac DSF Combat Hostiles Destroyed 28 | . 5 7 . 12 . 4 Guns 13 | . 5 3 . 5 . . Cannons 11 | . . 4 . 6 . 1 AOE 4 | . . . . 1 . 3 Classes Destroyed 8 | . 2 3 . 2 . 1 Watcher 3 | . . 1 . 2 . . Swarmer 3 | . 3 . . . . . Grunt 13 | . 2 4 . 7 . . Brawler 1 | . . 1 . . . . Duelist 1 | . . . . 1 . . Sentry 6 | . . 2 . 3 . 1 Specialist 3 | . . . . . . 3 Heavy 1 | . . . . 1 . . Best Kill Streak 4 | . 3 3 . 4 . 3 Combat Bots Only 4 | . 3 3 . 4 . 3 Max Kills in Single Turn 2 | . 1 1 . 2 . 2 Gunslinging . | . . . . . . . Exploded 2 | . . . . 1 . 2 Melee . | . . . . . . . Uniques/NPCs Destroyed . | . . . . . . . Combat | -11 -10 -9 -9 -8 -7 -7 -------- Run | Yrd Mat Mat Min Mat Fac DSF Hostile Shots Fired 411 | . 26 33 . 84 . 268 Missed 168 | . 4 7 . 28 . 129 Damage Taken 3782 | . 200 364 . 1204 . 2014 Core 972 | . 41 34 . 147 . 750 Absorbed by Shields . | . . . . . . . Core Remaining (%) 86 | 100 83 . 91 73 . . Volleys Fired 94 | . 13 31 . 42 . 8 Largest 3 | . 2 2 . 3 . 3 Hottest 111 | . 60 88 . 111 . 111 Shots Fired 222 | . 26 61 . 117 . 18 Gun 146 | . 26 49 . 67 . 4 Cannon 65 | . . 12 . 42 . 11 Launcher 11 | . . . . 8 . 3 Special . | . . . . . . . Kinetic 194 | . 21 52 . 109 . 12 Thermal 17 | . 5 9 . . . 3 Explosive 10 | . . . . 8 . 2 Electromagnetic 1 | . . . . . . 1 Robot Hit Streak 8 | . 4 8 . 6 . 7 Robot Miss Streak 8 | . 3 2 . 8 . 4 Penetration Max . | . . . . . . . Secondary Targets . | . . . . . . . Shots Hit Robots 137 | . 15 43 . 68 . 11 Core Hits 76 | . 8 16 . 39 . 13 Critical Kills . | . . . . . . . Critical Parts Destroyed 1 | . . 1 . . . . Critical Strikes 1 | . . 1 . . . . Destroy 1 | . . 1 . . . . Melee Attacks . | . . . . . . . Impact . | . . . . . . . Slashing . | . . . . . . . Piercing . | . . . . . . . Sneak Attacks . | . . . . . . . Combat Hostiles . | . . . . . . . Follow-up Attacks . | . . . . . . . Damage Inflicted 2636 | . 152 565 . 1531 . 388 Guns 1266 | . 152 368 . 728 . 18 Cannons 892 | . . 186 . 529 . 177 Explosions 408 | . . . . 274 . 134 Melee . | . . . . . . . Ramming 70 | . . 11 . . . 59 Kinetic 1904 | . 117 410 . 1257 . 120 Thermal 326 | . 35 144 . . . 147 Explosive 310 | . . . . 274 . 36 Electromagnetic 26 | . . . . . . 26 Impact . | . . . . . . . Slashing . | . . . . . . . Piercing . | . . . . . . . Highest Corruption . | . . . . . . . Average Corruption . | . . . . . . . Corruption Purged . | . . . . . . . Corruption Blocked . | . . . . . . . Overload Shots . | . . . . . . . Overflow Damage 4 | . . . . 4 . . Projectiles . | . . . . . . . Explosions 4 | . . . . 4 . . Melee . | . . . . . . . Knockbacks 10 | . . . . 10 . . Impact . | . . . . . . . Kinetic 10 | . . . . 10 . . Secondary . | . . . . . . . Self-Inflicted Damage 127 | . . . . 18 . 109 Shots 5 | . . . . 1 . 4 Rammed 2 | . . 2 . . . . Targets Rammed 16 | . . 2 . . . 14 Kicked 14 | . . . . . . 14 Crushed . | . . . . . . . Highest Temperature 293 | . 40 234 . 293 . 9 Average Temperature 80 | . 15 90 . 85 . 5 Received Heat Transfer 999 | . 60 186 . 423 . 330 Siege Activations . | . . . . . . . Robots Corrupted . | . . . . . . . Combat Hostiles . | . . . . . . . Parts Fried . | . . . . . . . Impact Corruptions . | . . . . . . . Robots Melted . | . . . . . . . Combat Hostiles . | . . . . . . . Parts Melted . | . . . . . . . Heat Transferred 545 | . 75 259 . . . 211 Parts Sabotaged . | . . . . . . . Parts Stolen . | . . . . . . . Parts Stripped . | . . . . . . . Power Chain Reactions 4 | . . . . . . 4 Alert | -11 -10 -9 -9 -8 -7 -7 ------- Run | Yrd Mat Mat Min Mat Fac DSF Peak Influence 246 | . 89 145 53 246 35 80 Initial 53 | . . 20 53 20 35 28 Average 74 | . 52 87 53 96 35 39 Maximum Alert Level 1 | . . . . 1 . . Low Security (%) 96 | 100 100 100 100 91 100 100 Level 1 3 | . . . . 8 . . Level 2 . | . . . . . . . Level 3 . | . . . . . . . Level 4 . | . . . . . . . Level 5 . | . . . . . . . High Security . | . . . . . . . Max Security . | . . . . . . . Squads Dispatched 7 | . 2 . . 3 . 2 Investigation 1 | . . . . 1 . . Extermination . | . . . . . . . Reinforcement 5 | . 2 . . 1 . 2 Assault . | . . . . . . . Garrison 1 | . . . . 1 . . Intercept . | . . . . . . . Searches Triggered . | . . . . . . . Construction Impeded . | . . . . . . . Haulers Reinforced . | . . . . . . . Active Scanning Responses . | . . . . . . . Cargo Convoy Interrupts . | . . . . . . . Stealth | -11 -10 -9 -9 -8 -7 -7 --------- Run | Yrd Mat Mat Min Mat Fac DSF Distress Signals . | . . . . . . . Communications Jammed . | . . . . . . . Distress Signals . | . . . . . . . Times Spotted 49 | . 9 14 . 18 . 8 Peak Tracking Total 6 | . 5 5 . 4 . 6 Tactical Retreats 2 | . . . . . . 2 Traps | -11 -10 -9 -9 -8 -7 -7 ------- Run | Yrd Mat Mat Min Mat Fac DSF Traps Triggered 4 | . . 1 . 1 . 2 Indirectly . | . . . . . . . Trap Hack Attempts . | . . . . . . . Triggered . | . . . . . . . Disarmed . | . . . . . . . Reprogrammed . | . . . . . . . Reused . | . . . . . . . Traps Extracted . | . . . . . . . Installed . | . . . . . . . Triggered . | . . . . . . . Machines | -11 -10 -9 -9 -8 -7 -7 ---------- Run | Yrd Mat Mat Min Mat Fac DSF Machines Disabled 1 | . . . . 1 . . Max in Single Turn 1 | . . . . 1 . . Machines Repaired . | . . . . . . . Machines Dismantled . | . . . . . . . Machines Sabotaged . | . . . . . . . Overloaded Fab Kills . | . . . . . . . Hacking | -11 -10 -9 -9 -8 -7 -7 --------- Run | Yrd Mat Mat Min Mat Fac DSF Machines Accessed 11 | . 2 5 1 2 1 . Terminals 10 | . 2 5 . 2 1 . Fabricators . | . . . . . . . Repair Stations . | . . . . . . . Recycling Units . | . . . . . . . Scanalyzers . | . . . . . . . Garrison Access . | . . . . . . . Total Hacks 18 | . 3 10 1 3 1 . Successful 5 | . 1 2 1 . 1 . Failed 13 | . 2 8 . 3 . . Catastrophic 8 | . 2 3 . 3 . . Database Lockouts . | . . . . . . . Manual 10 | . 2 6 . 2 . . Terminals 17 | . 3 10 . 3 1 . Fabricators . | . . . . . . . Repair Stations . | . . . . . . . Recycling Units . | . . . . . . . Scanalyzers . | . . . . . . . Garrison Access . | . . . . . . . Terminal Hacks 5 | . 1 2 1 . 1 . Prototype ID Bank 1 | . . 1 . . . . Open Door 1 | . . . 1 . . . Open DSF 1 | . . . . . 1 . Locate Traps 1 | . . 1 . . . . Dispatch Records 1 | . 1 . . . . . Fabricator Hacks . | . . . . . . . Repair Station Hacks . | . . . . . . . Recycling Unit Hacks . | . . . . . . . Scanalyzer . | . . . . . . . Garrison Access Hacks . | . . . . . . . Unauthorized Hacks . | . . . . . . . Terminals . | . . . . . . . Fabricators . | . . . . . . . Repair Stations . | . . . . . . . Recycling Units . | . . . . . . . Scanalyzers . | . . . . . . . Garrison Access . | . . . . . . . Data Cores Recovered . | . . . . . . . Used . | . . . . . . . Hacking Detections 8 | . 2 4 . 2 . . Full Trace Events 1 | . . 1 . . . . Feedback Events . | . . . . . . . Feedback Blocked . | . . . . . . . Robot Schematics Acquired . | . . . . . . . Robots Built . | . . . . . . . Authchips . | . . . . . . . Time . | . . . . . . . Total Robot Build Rating . | . . . . . . . Part Schematics Acquired . | . . . . . . . Parts Built . | . . . . . . . Authchips . | . . . . . . . Time . | . . . . . . . Total Part Build Rating . | . . . . . . . Parts Repaired . | . . . . . . . Time . | . . . . . . . Parts Recycled . | . . . . . . . Recycled Matter . | . . . . . . . Retrieved Matter . | . . . . . . . Retrieved Components . | . . . . . . . Parts Scanalyzed . | . . . . . . . Part Schematics Acquired . | . . . . . . . Parts Damaged . | . . . . . . . Bothacking | -11 -10 -9 -9 -8 -7 -7 ------------ Run | Yrd Mat Mat Min Mat Fac DSF Used RIF Installer . | . . . . . . . Robots Hacked . | . . . . . . . Non-combat . | . . . . . . . Combat . | . . . . . . . Robot Hacks Applied . | . . . . . . . Relay Couplers Released . | . . . . . . . Fabnet Peak Effective % . | . . . . . . . Robots Rewired . | . . . . . . . Allies Hacked . | . . . . . . . Hacks Repelled . | . . . . . . . Allies | -11 -10 -9 -9 -8 -7 -7 -------- Run | Yrd Mat Mat Min Mat Fac DSF Total Allies . | . . . . . . . Largest Group . | . . . . . . . Highest-Rated Group . | . . . . . . . Highest-Rated Ally . | . . . . . . . Total Orders . | . . . . . . . Ally Attacks . | . . . . . . . Total Damage . | . . . . . . . Kills . | . . . . . . . Allies Corrupted . | . . . . . . . Allies Melted . | . . . . . . . Intel | -11 -10 -9 -9 -8 -7 -7 ------- Run | Yrd Mat Mat Min Mat Fac DSF Robot Analysis Total . | . . . . . . . Derelict Logs Recovered 2 | . . . 2 . . . Drone Launches . | . . . . . . . Drone Recoveries . | . . . . . . . Exploration | -11 -10 -9 -9 -8 -7 -7 ------------- Run | Yrd Mat Mat Min Mat Fac DSF Turns Passed 3238 | 83 601 608 366 1317 19 244 Spaces Moved 1342 | 46 182 283 212 486 8 125 Core 4 | 1 . . . . . 3 Treads 1124 | 45 182 283 212 402 . . Legs 214 | . . . . 84 8 122 Wheels . | . . . . . . . Hover . | . . . . . . . Flight . | . . . . . . . Fastest Speed 50 | 50 160 160 160 160 260 120 Average Speed 166 | 157 160 160 160 179 260 145 Slowest Speed 450 | 160 160 160 160 260 260 450 Overloaded Moves . | . . . . . . . Propulsion Burnouts . | . . . . . . . Robots Hopped . | . . . . . . . Cave-ins Triggered . | . . . . . . . Exploration Rate (%) 35 | 4 34 29 48 35 . 62 Regions Visited 6 Branch Regions 1 Pre-discovered Areas . | . . . . . . . Known Exits Taken 2 | . . . . 1 1 . Unknown Exits Taken 4 | 1 1 1 1 . . . Scrap Searched 2 | . . . 2 . . . Spaces Dug . | . . . . . . . Terrain Destroyed 106 | . . . . 83 . 23 Melee . | . . . . . . . Projectile 6 | . . . . 6 . . AOE 100 | . . . . 77 . 23 Terrain Rammed . | . . . . . . . Walls Destroyed . | . . . . . . . Machines Disabled . | . . . . . . . Actions | -11 -10 -9 -9 -8 -7 -7 --------- Run | Yrd Mat Mat Min Mat Fac DSF Total 2166 | 54 470 381 240 844 7 170 Wait 598 | . 265 40 21 271 . 1 Move 1336 | 45 181 282 211 485 7 125 Hop . | . . . . . . . Pick Up 21 | 3 1 7 2 6 . 2 Fast Attach 29 | 6 4 5 1 9 . 4 Attach 15 | . . 1 . 9 . 5 Detach 12 | . 3 3 . 5 . 1 Swap 16 | . 1 5 1 7 . 2 Drop 27 | . 2 5 4 10 . 6 Fire 94 | . 13 31 . 42 . 8 Melee . | . . . . . . . Ram . | . . . . . . . Kick 14 | . . . . . . 14 Crush 2 | . . 2 . . . . Escape Stasis 2 | . . . . . . 2 Rewire . | . . . . . . . Trap . | . . . . . . . Miscellaneous . | . . . . . . . Route ------- -11/Scrapyard -10/Materials -9/Materials (discovered 3 exits: *Min x2 / [*Sto]) -9/Mines -8/Materials (discovered 2 exits: *Fac x2) -7/Factory -7/DSF History --------- Turn | Location | Event 29 | -11/Scrapyard | Discovered new exit (range 15) 84 | -11/Scrapyard | Entered Materials 308 | -10/Materials | Build established: Mutant 657 | -10/Materials | Discovered new exit (range 5) 685 | -10/Materials | Entered another Materials area 685 | -9/Materials | Evolved 2 slots: Propulsion x1, Utility x1 728 | -9/Materials | Discovered new exit (range 8) 774 | -9/Materials | Discovered new exit (range 10) 1250 | -9/Materials | Discovered new exit (range 9) 1293 | -9/Materials | Entered Mines 1316 | -9/Mines | Learned location of 1 exit from Materials 1401 | -9/Mines | Build established: Scavenger-Mutant 1411 | -9/Mines | Met a Derelict who couldn't figure out how to use a Trap Extractor 1517 | -9/Mines | Learned location of 1 exit from Materials 1577 | -9/Mines | Discovered new exit (range 5) 1659 | -9/Mines | Entered Materials 1659 | -8/Materials | Evolved 2 slots: Power x1, Weapon x1 1660 | -8/Materials | Identified exit to Factory 2109 | -8/Materials | Build established: Mutant 2310 | -8/Materials | Garrison activated, responded to threat 2976 | -8/Materials | Entered Factory 2976 | -7/Factory | Evolved 2 slots: Propulsion x1, Utility x1 2995 | -7/Factory | Identified exit to DSF 2995 | -7/Factory | Entered DSF 3038 | -7/DSF | Additional patrols routed to DSF 3200 | -7/DSF | Core integrity fell below 50% 3224 | -7/DSF | Core integrity fell below 20% 3239 | -7/DSF | Destroyed by H-61 Shepherd with Heavy Assault Cannon Last Messages --------------- S-27 Virus destroyed. X-62 Marksman destroyed. Chain reaction triggered in Lgt. Nuclear Core. Emergency Access malfunctions. Chain reaction triggered in Corrupted Imp. Deuterium Engine. X-62 Marksman destroyed. Chain reaction triggered in Imp. Ion Engine. Chain reaction triggered in Corrupted Imp. Deuterium Engine. EMP Blaster destroyed. Ion Engine destroyed. Slug penetrates Wall. Knocked back. Slug penetrates Wall. Y-54 Guardian destroyed. H-61 Shepherd calls for reinforcements. ALERT: Hostile activity reported, dispatching reinforcements to area. Imp. Titanium Leg destroyed. Missile Launcher destroyed. Penetrated by Slug. Slug penetrates Wall. Map ----- +----------------------------------------------------+ | ??????????????????????????????????? | | ?????????""#??????????????????????? | | ?????????#"#??????????????????????? | | ??????####"##????????########?????? | | ??????#%""""######### !!!!!#?????? | | ??????#"%"""## # # !!!!!#!!!#?? | | ????"##"" ^ | | ????""""" ! | | ????###"" [ ##==# ### ###?????? | | ??????### ###==# #?????#???????? | | ???????##% ##########?????????????? | | ???????# #????????????????????? | | ???????#= #????????????????????? | | ???????## ###????????????????????? | | ???????# ==#????????????????????? | | ???????# == #????????????????????? | | ???????# ==#????????????????????? | | ??????### ##########?????????????? | | ??????# #?!!!# ! ##????????????? | | ????### ##!!! ! ! #a ?????????? | | ????# % ????????? | | ????#%;% H ????????? | | ????# ; ????????? | | ?????## ; ! ????????? | | ??????#% ; !!!#?# #???????? | | ??????#; @;########### ##??????? | | ??????## = ==########!! !!??????? | | ??????# %==/ #?! !???????? | | ??????# ==###!! ##?! !???????? | | ??????# [ ##?#!! #### ###?????? | | ?????? % ==#?### ## //#?????? | | ?????## ==#???# #? //#?????? | | ??????# ######/##? //??????? | | ??????### ##==#===#?# #???????? | | ??????#"" ##==#===### ###?????? | | ????""""" #?????? | | ????"##"" #?????? | | ??????#"""""## # # [///!!#?????? | | ??????#"""""#########]=///!!#?????? | | ??????####"##???????#########?????? | | ?????????#"#??????????????????????? | | ?????????""???????????????????????? | | ??????????????????????????????????? | | ??????????????????????????????????? | | ??????????????????????????????????? | | ??????????????????????????????????? | | ??????????????????????????????????? | | | | | | | +----------------------------------------------------+ Best States ------------- Heat Dissipation 34 Energy Generation 19 Energy Capacity 415 Matter Stores 300 Matter Capacity 300 Sight Range 16 Robot Scan Range 15 Terrain Scan Range 14 Terrain Scan Density 10 ECM Strength 2 Armor Coverage 225 Evasion (%) 55 Targeting Accuracy 5 Core Analysis 6 Recoil Reduction 3 Kinecelleration 30 Defensive Hacking 10 Item Schematics ----------------- None Robot Schematics ------------------ None Fabricated ------------ Nothing Alien Tech Used ----------------- None Achievements -------------- None Challenges ------------ None Game ------ Seed ArmorCargoSword Manual? 0 Play Time 00:39:02 Cumulative 15.1 hours Start 2024.05.14 @ 15:15:40 End 2024.05.14 @ 15:52:50 Sessions 1 Manual Loads 0 Difficulty Rogue Special Mode None Game No. 17 Rogue 17 Adventurer 0 Explorer 0 Win Type - Total 0 Types 0/0/0/0/0/0/0/0/0 Lore% 15 Gallery% 18 Achievement% 16 Wizard Run 0 Options --------- Layout 0 ASCII 0 Keyboard 1 Movement Arrows Keybinds 0 Fullscreen 2 Font 24/Terminus Map View 76x50 Zoom Use 0% Tactical HUD 0 Map Filters NONE Filters NONE Steam 0 RUN: 9274316a-8858-42e2-bc68-a3df21738851